bitfinex-derivatives/quotes_SOLF0:USTF0_20250818
["timestamp","ask_amount","ask_price","bid_price","bid_amount"]
[1755554004544,3.89336279,183.45,183.42,0.03799209]
[1755554004745,3.89336279,183.44,183.42,0.03799209]
[1755554004941,137.72,183.46,183.42,0.03799209]
[1755554005144,3.89336279,183.45,183.42,0.03799209]
[1755554005355,3.89336279,183.44,183.42,0.03799209]
[1755554005544,137.72,183.46,183.42,0.03799209]
[1755554005742,3.89343617,183.45,183.42,0.03799209]
[1755554005945,3.89343617,183.44,183.42,0.03799209]
[1755554006142,137.72,183.46,183.42,0.03799209]
[1755554006356,3.89343617,183.45,183.42,0.03799209]
[1755554006549,3.89343617,183.44,183.42,0.03799209]
[1755554006757,2.9,183.45,183.42,2.93799209]
[1755554007061,3.89362457,183.44,183.42,0.03799209]
[1755554007258,134.64,183.46,183.42,0.03799209]
[1755554007453,3.89379969,183.45,183.42,0.03799209]
[1755554007756,3.89379969,183.44,183.42,0.03799209]
[1755554007958,134.64,183.46,183.42,0.03799209]
[1755554008258,3.89384005,183.45,183.42,0.03799209]
[1755554008458,3.89384005,183.44,183.42,0.03799209]
[1755554008767,2.9,183.45,183.42,0.03799209]
[1755554008970,3.89408506,183.44,183.42,0.03799209]
[1755554009164,2.9,183.45,183.42,0.03799209]
[1755554009365,3.89408506,183.44,183.42,0.03799209]
[1755554009564,2.9,183.45,183.42,0.03799209]
[1755554009767,3.894365,183.44,183.42,0.03799209]
[1755554009968,2.9,183.45,183.42,0.03799209]
[1755554010268,3.894365,183.44,183.42,0.03799209]
[1755554010469,2.9,183.45,183.42,0.03799209]
[1755554010771,3.89468638,183.44,183.42,0.03799209]
[1755554011067,2.9,183.45,183.42,0.03799209]
[1755554011257,3.89468638,183.44,183.42,0.03799209]
[1755554011461,2.9,183.45,183.42,0.03799209]
[1755554011661,3.89505693,183.44,183.42,0.03799209]
[1755554011963,2.9,183.45,183.42,0.03799209]
[1755554012158,3.89505693,183.44,183.42,0.03799209]
[1755554012466,134.5,183.48,183.43,2.44358611]
[1755554012667,3.89536139,183.47,183.43,2.44358611]
[1755554012867,3.89536139,183.46,183.43,2.44358611]
[1755554013067,3.89536139,183.45,183.44,2.9]
[1755554013768,3.89536139,183.45,183.43,2.44358611]
[1755554014075,2.9,183.47,183.45,2.9]
[1755554014265,3.87888036,183.46,183.45,5.34358611]
[1755554014463,3.87888036,183.46,183.45,2.44358611]
[1755554015264,6.09268624,183.52,183.45,10.79188611]
[1755554015477,3.87939148,183.51,183.42,0.03799209]
[1755554015773,135.62,183.55,183.5,2.44358611]
[1755554015969,2.9,183.52,183.5,2.44358611]
[1755554017262,2.9,183.54,183.5,2.44358611]
[1755554017467,2.9,183.53,183.5,2.44358611]
[1755554018279,2.9,183.54,183.52,2.44358611]
[1755554018974,135.48,183.57,183.52,2.44358611]
[1755554019274,2.9,183.56,183.52,2.44358611]
[1755554019775,2.9,183.56,183.52,2.48276861]
[1755554022779,2.9,183.55,183.52,2.48276861]
[1755554024081,135.48,183.57,183.52,2.48276861]
[1755554024274,2.9,183.56,183.52,2.48276861]
[1755554026585,135.48,183.57,183.52,2.48276861]
[1755554026886,2.9,183.56,183.52,2.48276861]
[1755554027886,135.48,183.57,183.54,2.44358611]
[1755554028184,6.09268624,183.67,183.52,0.0391825]
[1755554028185,2.9,183.66,183.56,2.44358611]
[1755554028385,135.12,183.68,183.61,2.44358611]
[1755554028579,2.9,183.64,183.61,2.44358611]
[1755554028885,135.12,183.68,183.63,0.04055129]
[1755554028886,2.9,183.67,183.63,0.04055129]
[1755554029475,2.44358611,183.65,183.57,2.44358611]
[1755554029678,2.9,183.64,183.57,2.44358611]
[1755554030679,0.03903986,183.62,183.57,2.44358611]
[1755554030879,0.03903986,183.62,183.57,2.48358611]
[1755554031082,2.9,183.6,183.57,2.48358611]
[1755554032783,3.14,183.61,183.57,2.48358611]
[1755554032978,3.14,183.61,183.57,2.44358611]
[1755554033185,0.03903986,183.62,183.57,2.44358611]
[1755554033385,3.14,183.61,183.57,2.44358611]
[1755554033585,0.03903986,183.62,183.57,2.44358611]
[1755554033787,3.14,183.61,183.57,2.44358611]
[1755554035193,3.14,183.61,183.59,2.44358611]
[1755554040399,0.03903986,183.62,183.61,0.04]
[1755554040599,0.03903986,183.62,183.61,2.48358611]
[1755554040790,0.03903986,183.62,183.61,2.44358611]
[1755554043595,3.17903986,183.62,183.61,2.44358611]
[1755554043801,0.03903986,183.62,183.61,2.44358611]
[1755554046799,3.14,183.61,183.59,2.44358611]
[1755554047001,3.14,183.61,183.48,16.91321329]
[1755554047002,0.03903986,183.62,183.57,2.44358611]
[1755554047204,3.14,183.59,183.57,2.48358611]
[1755554047402,3.14,183.59,183.57,7.92818611]
[1755554048006,3.14,183.59,183.57,7.88818611]
[1755554048602,0.03724389,183.6,183.57,7.88818611]
[1755554048904,3.17724389,183.6,183.58,5.4844]
[1755554049103,0.03724389,183.6,183.59,0.04]
[1755554050003,0.03724389,183.6,183.58,7.88798611]
[1755554050193,0.03724389,183.6,183.59,0.04]
[1755554051102,3.14,183.59,183.58,7.88798611]
[1755554052106,3.17724389,183.6,183.58,7.92798611]
[1755554052708,0.03724389,183.6,183.59,0.04]
[1755554053308,0.03724389,183.6,183.59,5.4841]
[1755554059307,48.0,183.67,183.62,5.4429]
[1755554059612,3.14,183.69,183.63,0.04]
[1755554060206,3.14,183.69,183.63,5.4827]
[1755554060411,3.14,183.69,183.63,0.04]
[1755554060799,3.14,183.68,183.64,5.52166898]
[1755554061011,3.14,183.67,183.64,7.96525509]
[1755554061212,3.14,183.67,183.64,2.52265509]
[1755554061408,3.14,183.66,183.64,2.52265509]
[1755554067214,134.42,183.7,183.64,2.52265509]
[1755554067419,2.99,183.66,183.64,2.52265509]
[1755554070119,2.99,183.66,183.65,0.03]
[1755554070315,2.99,183.66,183.64,2.51265509]
[1755554070515,2.99,183.66,183.64,0.06906898]
[1755554070816,2.99,183.66,183.64,2.51265509]
[1755554076326,2.99,183.66,183.64,7.95515509]
[1755554077426,134.42,183.7,183.64,2.48265509]
[1755554077626,2.99,183.69,183.64,2.48265509]
[1755554078418,2.99,183.69,183.64,0.03906898]
[1755554079328,134.42,183.7,183.64,0.03906898]
[1755554079627,2.99,183.67,183.64,0.03906898]
[1755554079825,2.99,183.65,183.64,0.03906898]
[1755554080531,134.42,183.7,183.64,0.03906898]
[1755554080731,2.99,183.67,183.64,0.03906898]
[1755554080925,134.42,183.7,183.64,0.03906898]
[1755554081231,4.32195168,183.69,183.64,0.03906898]
[1755554081529,136.86358611,183.7,183.64,0.03906898]
[1755554081722,7.31226357,183.69,183.64,0.03906898]
[1755554081918,2.99,183.69,183.65,2.44358611]
[1755554082124,2.99,183.69,183.65,2.47358611]
[1755554082421,134.42,183.7,183.65,2.47358611]
[1755554082422,134.42,183.7,183.65,2.44358611]
[1755554082624,2.99,183.67,183.65,2.44358611]
[1755554084031,2.99,183.66,183.65,2.44358611]
[1755554085134,134.42,183.7,183.65,2.44358611]
[1755554085135,2.99,183.67,183.65,2.47358611]
[1755554085328,2.99,183.66,183.65,2.44358611]
[1755554085528,2.99,183.66,183.65,2.47358611]
[1755554085834,134.42,183.7,183.65,2.47358611]
[1755554086035,2.99,183.68,183.65,2.47358611]
[1755554086238,2.99,183.67,183.65,2.47358611]
[1755554089145,2.99,183.69,183.66,0.03]
[1755554089350,2.99,183.68,183.66,0.03]
[1755554098061,3.16,183.69,183.66,0.03]
[1755554098263,134.42,183.7,183.66,0.03]
[1755554098558,3.16,183.68,183.66,0.03]
[1755554099559,3.16,183.69,183.65,7.92588611]
[1755554099759,3.16,183.68,183.65,7.92588611]
[1755554101559,134.42,183.7,183.66,0.04]
[1755554101761,3.16,183.68,183.66,0.04]
[1755554101962,3.16,183.67,183.65,7.88588611]
[1755554102151,3.16,183.67,183.65,7.92588611]
[1755554107467,3.16,183.69,183.66,0.04]
[1755554107765,3.16,183.68,183.66,0.04]
[1755554111069,137.58,183.7,183.67,0.04]
[1755554111271,3.16,183.7,183.67,2.44358611]
[1755554111461,3.16,183.7,183.67,2.48358611]
[1755554111764,3.16,183.7,183.67,7.88508611]
[1755554111966,3.16,183.7,183.68,0.04]
[1755554113266,3.16,183.7,183.68,5.4814]
[1755554115570,3.16,183.7,183.68,0.04]
[1755554116569,3.16,183.7,183.69,2.44358611]
[1755554126883,2.9,183.73,183.69,2.44358611]
[1755554127577,2.9,183.72,183.69,2.44358611]
[1755554127982,2.9,183.72,183.69,2.47928299]
[1755554131676,134.26,183.74,183.69,0.03569688]
[1755554131880,7.1496842,183.73,183.69,0.03569688]
[1755554132076,2.9,183.73,183.69,0.03569688]
[1755554134477,2.9,183.7,183.69,0.03569688]
[1755554140688,2.9,183.73,183.69,0.03569688]
[1755554140889,2.9,183.73,183.69,5.47679688]
[1755554141496,2.9,183.73,183.69,0.03569688]
[1755554141792,134.26,183.74,183.69,0.03569688]
[1755554141991,2.9,183.72,183.69,0.03569688]
[1755554143087,2.9,183.73,183.69,5.47659688]
[1755554143289,54.09268624,183.77,183.71,2.48358611]
[1755554143595,2.9,183.8,183.73,2.44358611]
[1755554143797,2.9,183.78,183.73,2.44358611]
[1755554143985,2.9,183.77,183.74,0.04]
[1755554144186,2.9,183.76,183.74,5.4796]
[1755554144387,2.9,183.76,183.74,0.07813927]
[1755554145288,2.9,183.76,183.74,0.03813927]
[1755554145887,134.12,183.81,183.74,0.03813927]
[1755554146090,2.9,183.78,183.74,0.03813927]
[1755554146386,2.9,183.77,183.74,0.03813927]
[1755554146887,2.9,183.8,183.74,5.47773927]
[1755554147194,2.9,183.77,183.74,5.47773927]
[1755554148093,2.9,183.77,183.75,2.44358611]
[1755554150792,2.9,183.8,183.75,7.92298611]
[1755554150993,2.9,183.79,183.77,2.44358611]
[1755554151198,134.12,183.81,183.77,2.44358611]
[1755554151395,2.9,183.78,183.77,2.44358611]
[1755554154299,134.12,183.81,183.77,2.44358611]
[1755554154599,3.0,183.8,183.77,2.44358611]
[1755554154898,134.12,183.81,183.77,2.47358611]
[1755554155196,3.0,183.79,183.77,2.47358611]
[1755554155891,134.12,183.81,183.78,0.03]
[1755554156089,137.12,183.81,183.79,2.47358611]
[1755554156493,134.04,183.84,183.78,0.03]
[1755554156795,3.0,183.82,183.79,2.47358611]
[1755554157296,3.0,183.84,183.79,2.44358611]
[1755554157598,3.0,183.83,183.8,0.03]
[1755554157996,134.02,183.85,183.81,2.44358611]
[1755554158193,3.0,183.83,183.81,0.03]
[1755554158499,3.0,183.83,183.81,2.47358611]
[1755554159296,3.0,183.82,183.81,2.47358611]
[1755554159488,137.02,183.85,183.81,2.44358611]
[1755554159691,3.0,183.84,183.81,2.44358611]
[1755554161003,3.0,183.82,183.78,0.03689129]
[1755554161191,2.44358611,183.81,183.75,2.44358611]
[1755554161389,2.44358611,183.79,183.73,2.44358611]
[1755554161597,3.0,183.78,183.73,2.44358611]
[1755554162294,3.0,183.78,183.71,2.44358611]
[1755554162799,3.0,183.76,183.71,2.44358611]
[1755554163903,3.0,183.76,183.69,2.44358611]
[1755554165403,2.44358611,183.75,183.69,2.44358611]
[1755554165702,3.0,183.74,183.69,2.44358611]
[1755554165903,2.4800862,183.77,183.69,2.44358611]
[1755554166103,3.0,183.73,183.7,0.07]
[1755554166311,3.03650009,183.77,183.71,0.07]
[1755554166804,3.0,183.77,183.71,0.07]
[1755554167006,0.0345159,183.76,183.71,0.07]
[1755554167906,3.0,183.75,183.72,0.07]
[1755554168309,3.0,183.75,183.73,0.07]
[1755554168601,0.0345159,183.76,183.73,0.07]
[1755554168801,0.0345159,183.76,183.72,5.4403]
[1755554168997,3.0345159,183.76,183.74,0.07]
[1755554169600,3.0345159,183.76,183.73,0.07]
[1755554172608,0.0345159,183.76,183.74,0.07]
[1755554173007,0.0345159,183.76,183.75,0.07]
[1755554175217,0.0345159,183.76,183.75,5.5094]
[1755554178612,3.0,183.84,183.77,5.4385]
[1755554178817,3.0,183.84,183.77,5.5085]
[1755554180020,3.0,183.86,183.79,3.86965896]
[1755554180414,3.0,183.86,183.79,3.90752018]
[1755554181211,3.0,183.86,183.79,9.34572018]
[1755554182514,133.96,183.87,183.8,5.4377]
[1755554182718,3.16,183.85,183.82,0.07]
[1755554184913,3.16,183.85,183.81,5.4376]
[1755554185114,3.16,183.86,183.81,5.4376]
[1755554185318,3.16,183.86,183.82,0.07]
[1755554185513,3.16,183.86,183.83,0.07]
[1755554186324,3.16,183.96,183.84,3.86965896]
[1755554186523,3.16,183.96,183.85,0.07]
[1755554186524,3.16,183.94,183.85,0.07]
[1755554187322,3.16,183.94,183.85,5.5062]
[1755554187530,3.16,183.94,183.88,0.03504808]
[1755554187718,133.9,183.96,183.88,0.10504808]
[1755554188025,3.16,183.95,183.88,3.90470704]
[1755554188221,3.16,183.95,183.89,5.4352]
[1755554189120,3.16,183.95,183.88,3.90470704]
[1755554189121,3.16,183.95,183.9,5.4349]
[1755554189317,3.16,183.97,183.9,5.4349]
[1755554190420,133.9,184.0,183.92,0.03778178]
[1755554190725,3.16,183.94,183.92,0.03778178]
[1755554191623,3.16,183.94,183.92,0.10778178]
[1755554193724,3.16,183.94,183.92,0.03778178]
[1755554199225,181.9,184.0,183.92,0.03778178]
[1755554199430,3.16,183.97,183.92,0.03778178]
[1755554199928,3.16,183.95,183.92,0.03778178]
[1755554200234,3.16,183.95,183.92,0.10778178]
[1755554200937,3.16,183.95,183.92,0.03778178]
[1755554201522,3.16,183.94,183.92,0.10778178]
[1755554203029,3.16,183.99,183.92,0.03778178]
[1755554203229,3.16,183.99,183.92,0.10778178]
[1755554203429,3.16,183.99,183.92,5.54188178]
[1755554206540,3.16,183.99,183.93,5.434]
[1755554206933,3.16,183.99,183.93,5.504]
[1755554207650,3.16,183.99,183.93,5.434]
[1755554207942,133.8,184.02,183.95,0.07]
[1755554208132,3.16,183.97,183.95,0.07]
[1755554209133,133.8,184.02,183.95,5.5033]
[1755554209332,3.16,184.05,183.96,0.07]
[1755554209939,3.16,184.05,183.96,5.5031]
[1755554210443,3.16,184.05,183.97,5.4328]
[1755554210941,3.16,184.05,183.96,0.07]
[1755554210942,3.79965896,184.03,183.93,0.07]
[1755554211139,3.16,184.02,183.91,3.79965896]
[1755554211549,3.16,184.02,183.89,0.07]
[1755554211744,135.44,184.01,183.89,0.07]
[1755554211947,3.16,184.0,183.89,0.07]
[1755554212139,3.16,184.0,183.91,5.4346]
[1755554214051,3.16,184.0,183.91,5.5046]
[1755554215353,3.16,184.0,183.92,5.4343]
[1755554216855,3.16,184.0,183.93,5.434]
[1755554217357,135.44,184.01,183.91,3.79965896]
[1755554217651,138.39,184.01,183.92,0.07]
[1755554217855,138.39,184.01,183.92,3.86965896]
[1755554218053,138.39,184.01,183.93,0.07]
[1755554219245,135.44,184.01,183.96,5.4332]
[1755554219450,2.95,184.0,183.97,0.07]
[1755554220960,2.95,184.05,183.97,0.07]
[1755554221763,2.95,184.05,183.97,5.5029]
[1755554222460,2.95,184.05,183.98,5.4326]
[1755554226054,2.95,184.05,183.97,5.5028]
[1755554227855,2.95,184.05,183.98,5.4325]
[1755554228466,2.95,184.05,183.97,5.5028]
[1755554229067,2.95,184.05,183.98,5.4325]
[1755554230360,2.95,184.05,183.97,5.5028]
[1755554230859,2.95,184.05,183.98,0.07]
[1755554232166,2.95,184.05,183.98,5.5026]
[1755554234658,2.95,184.05,183.99,5.4322]
[1755554235366,2.95,184.05,183.99,5.5022]
[1755554238966,2.95,184.05,183.99,0.07]
[1755554248479,6.09268624,184.14,183.99,3.79965896]
[1755554248679,2.87,184.12,184.03,0.06]
[1755554248876,135.0,184.11,184.03,0.06]
[1755554249077,135.0,184.11,184.05,5.4304]
[1755554249270,135.0,184.11,184.06,0.06]
[1755554249475,2.87,184.1,184.07,0.06]
[1755554250275,135.0,184.11,184.0,4.52137648]
[1755554250276,135.0,184.11,184.05,3.79965896]
[1755554250475,135.0,184.11,184.07,0.06]
[1755554250677,137.87,184.11,184.08,0.06]
[1755554250878,135.0,184.11,184.09,0.06]
[1755554251386,137.83,184.14,184.06,0.06]
[1755554251682,137.83,184.14,184.08,5.4294]
[1755554251878,134.96,184.14,184.08,5.4294]
[1755554252085,2.87,184.13,184.1,0.06]
[1755554252288,134.96,184.14,184.09,5.4293]
[1755554252486,2.87,184.13,184.1,0.06]
[1755554253482,2.87,184.19,184.12,0.06]
[1755554253686,138.41,184.19,184.12,0.06]
[1755554254186,138.41,184.19,184.13,5.428]
[1755554254780,135.54,184.19,184.14,5.4278]
[1755554255083,2.87,184.18,184.15,0.06]
[1755554258086,2.87,184.18,184.13,5.4281]
[1755554258586,2.87,184.18,184.15,0.06]
[1755554258787,135.54,184.19,184.15,0.06]
[1755554259187,2.87,184.18,184.15,0.06]
[1755554260895,2.87,184.18,184.08,3.85965896]
[1755554261390,2.87,184.18,184.09,5.4293]
[1755554261594,135.54,184.19,184.09,0.06]
[1755554261889,2.87,184.18,184.11,3.85965896]
[1755554267490,2.87,184.18,184.11,0.06]
[1755554268997,2.87,184.18,184.09,3.85965896]
[1755554270204,2.87,184.18,184.1,0.06]
[1755554271497,48.0,184.27,184.15,3.79965896]
[1755554271498,2.87,184.27,184.15,3.79965896]
[1755554271687,134.9,184.27,184.15,3.79965896]
[1755554271892,3.79965896,184.25,184.11,3.79965896]
[1755554272198,2.95,184.24,184.11,3.84965896]
[1755554273498,3.79965896,184.23,184.12,5.4785]
[1755554273698,2.95,184.22,184.12,5.4785]
[1755554278507,2.95,184.22,184.13,5.4282]
[1755554279414,2.95,184.22,184.12,5.4784]
[1755554280318,2.95,184.22,184.12,0.05]
[1755554281112,2.95,184.2,184.09,0.05]
[1755554282911,2.95,184.2,184.09,5.4293]
[1755554283118,2.95,184.2,184.11,3.79965896]
[1755554283317,2.95,184.2,184.12,0.05]
[1755554293427,2.95,184.18,184.12,0.05]
[1755554300334,2.95,184.18,184.12,2.47119043]
[1755554307638,2.95,184.18,184.12,0.05]
[1755554307934,2.95,184.18,184.12,2.47119043]
[1755554310737,2.97,184.16,184.12,2.47119043]
[1755554310937,2.97,184.15,184.12,2.47119043]
[1755554311837,2.97,184.15,184.13,0.06]
[1755554312035,2.97,184.18,184.12,2.42119043]
[1755554312230,4.15005208,184.17,184.12,2.42119043]
[1755554312566,2.97,184.15,184.12,2.48119043]
[1755554312917,2.97,184.16,184.09,2.42119043]
[1755554313047,2.42119043,184.17,184.09,2.42119043]
[1755554313048,2.97,184.14,184.09,2.42119043]
[1755554313233,2.97,184.14,184.09,2.48119043]
[1755554313431,2.42119043,184.17,184.09,2.48119043]
[1755554313740,2.97,184.14,184.07,2.42119043]
[1755554314036,4.25091696,184.13,184.07,2.42119043]
[1755554314239,2.97,184.11,184.08,0.06]
[1755554314538,2.97,184.11,184.09,0.06]
[1755554317233,2.97,184.11,184.08,0.06]
[1755554319837,2.97,184.1,184.08,0.06]
[1755554320842,2.42119043,184.14,184.08,0.06]
[1755554321041,2.97,184.13,184.08,0.06]
[1755554321231,2.42119043,184.1,184.02,4.46568461]
[1755554321436,2.97,184.09,184.02,2.42119043]
[1755554321639,2.97,184.07,184.0,2.42119043]
[1755554321839,2.42119043,184.06,184.0,2.42119043]
[1755554322041,2.97,184.05,183.98,2.48119043]
[1755554322338,2.97,184.05,183.98,0.06]
[1755554322540,2.97,184.05,183.98,2.48119043]
[1755554323138,2.42119043,184.04,183.95,4.46568461]
[1755554323332,2.97,184.01,183.93,2.42119043]
[1755554323739,2.97,184.01,183.96,0.06]
[1755554323939,2.97,184.01,183.95,2.48119043]
[1755554324544,2.97,184.01,183.95,0.06]
[1755554325950,2.97,184.01,183.91,9.22471383]
[1755554326348,2.97,184.01,183.92,0.06]
[1755554327646,2.97,184.01,183.95,0.06]
[1755554328350,2.97,184.01,183.95,5.4934]
[1755554328655,2.97,184.01,183.95,0.06]
[1755554341755,2.97,184.01,183.94,5.4337]
[1755554341954,2.97,184.01,183.9,0.06]
[1755554341955,3.79001383,184.0,183.9,0.06]
[1755554342251,2.85,183.99,183.9,0.06]
[1755554342853,2.85,183.99,183.89,77.0517414]
[1755554343049,2.85,183.96,183.89,77.0517414]
[1755554344641,2.85,183.96,183.87,0.06]
[1755554345552,3.79001383,183.94,183.84,5.4367]
[1755554345857,2.85,183.93,183.84,5.4367]
[1755554346558,2.85,183.93,183.86,0.06]
[1755554347656,3.79001383,183.93,183.82,3.79001383]
[1755554347863,3.79001383,183.9,183.79,0.06]
[1755554348156,2.85,183.89,183.79,0.06]
[1755554348356,2.85,183.86,183.79,0.06]
[1755554348748,2.85,183.86,183.72,3.79001383]
[1755554348948,2.85,183.86,183.74,5.4996]
[1755554349147,2.85,183.83,183.63,221.00912001]
[1755554349347,3.79001383,183.8,183.7,5.4406]
[1755554349555,2.85,183.79,183.71,0.06]
[1755554351056,2.85,183.81,183.72,0.06]
[1755554351461,2.85,183.81,183.75,5.4394]
[1755554351653,2.85,183.81,183.75,0.06]
[1755554352053,2.85,183.81,183.75,5.4994]
[1755554352559,365.24,183.86,183.8,5.4977]
[1755554352859,2.85,183.88,183.8,0.06]
[1755554353559,2.85,183.88,183.81,0.06]
[1755554353867,139.43,183.91,183.84,5.4365]
[1755554354061,139.43,183.91,183.84,5.4965]
[1755554354250,136.58,183.91,183.84,0.06]
[1755554354656,2.85,183.94,183.84,0.06]
[1755554355263,2.85,183.94,183.86,5.4361]
[1755554355460,2.85,183.94,183.87,0.06]
[1755554355965,368.21,183.96,183.87,5.4956]
[1755554356262,368.21,183.96,183.87,0.06]
[1755554356469,368.21,183.96,183.88,5.4355]
[1755554359364,368.21,183.96,183.87,0.06]
[1755554359365,368.21,183.96,183.87,5.4958]
[1755554362359,368.21,183.96,183.87,0.06]
[1755554362360,2.93,183.95,183.87,0.06]
[1755554364565,50.93,183.95,183.83,3.79001383]
[1755554364765,50.93,183.95,183.75,10.8786]
[1755554364766,2.93,183.92,183.8,3.86001383]
[1755554364960,2.93,183.91,183.8,3.86001383]
[1755554365568,2.93,183.91,183.81,5.4374]
[1755554366870,2.93,183.91,183.82,0.07]
[1755554367966,2.93,183.91,183.8,3.79001383]
[1755554367967,2.93,183.91,183.84,0.07]
[1755554368368,139.15,183.94,183.84,0.07]
[1755554368877,139.15,183.94,183.85,5.4364]
[1755554369171,139.15,183.94,183.85,5.5064]
[1755554369878,187.15,183.94,183.85,5.5064]
[1755554375074,184.22,183.94,183.85,5.5064]
[1755554375274,2.93,183.93,183.85,5.5064]
[1755554375875,2.93,183.93,183.86,5.506]
[1755554380279,2.93,183.93,183.86,0.07]
[1755554380780,2.93,183.93,183.85,5.4364]
[1755554380979,2.93,183.93,183.84,3.79001383]
[1755554381674,2.93,183.93,183.85,5.4364]
[1755554381874,2.93,183.93,183.83,0.07]
[1755554382178,2.93,183.93,183.84,5.4366]
[1755554382366,2.93,183.93,183.83,0.07]
[1755554382566,6.72001383,183.93,183.83,5.507]
[1755554382771,2.93,183.92,183.83,5.507]
[1755554382973,2.93,183.92,183.83,0.07]
[1755554385379,50.93,183.92,183.83,0.07]
[1755554385577,2.93,183.91,183.83,0.07]
[1755554387081,2.93,183.91,183.83,5.507]
[1755554388986,2.93,183.91,183.83,0.07]
[1755554394089,3.16,183.89,183.78,3.86001383]
[1755554394281,3.16,183.87,183.78,3.86001383]
[1755554394676,3.16,183.87,183.78,0.07]
[1755554398193,4.37618748,183.86,183.78,0.07]
[1755554398498,183.7,183.88,183.78,0.07]
[1755554398499,3.16,183.85,183.78,0.07]
[1755554399692,3.16,183.85,183.78,5.5085]
[1755554400299,3.16,183.85,183.8,0.07]
[1755554400490,138.68,183.9,183.8,0.07]
[1755554400685,139.89381074,183.89,183.8,0.07]
[1755554400890,135.52,183.89,183.83,0.07]
[1755554401194,138.74,183.93,183.83,0.07]
[1755554401490,3.16,183.91,183.83,0.07]
[1755554401692,135.56,183.93,183.83,0.07]
[1755554401888,7.53274312,183.92,183.83,0.07]
[1755554402088,3.16,183.92,183.83,4.60784025]
[1755554402294,3.16,183.92,183.84,0.07]
[1755554402494,3.16,183.92,183.86,5.4362]
[1755554402794,3.16,183.92,183.88,0.07]
[1755554402991,3.16,183.92,183.89,0.07]
[1755554404294,135.56,183.93,183.87,5.4359]
[1755554404484,138.72,183.93,183.89,0.07]
[1755554405886,3.16,183.93,183.89,0.07]
[1755554406294,3.16,183.97,183.89,0.07]
[1755554406494,3.16,183.95,183.89,0.07]
[1755554406681,139.29001383,183.98,183.88,3.86001383]
[1755554406682,135.5,183.98,183.88,3.86001383]
[1755554406885,4.37437468,183.97,183.89,0.07]
[1755554407085,138.66,183.98,183.89,0.07]
[1755554407295,4.37410521,183.97,183.91,0.07]
[1755554407500,138.66,183.98,183.91,0.07]
[1755554407995,138.66,183.98,183.91,5.5044]
[1755554408194,138.66,183.98,183.88,8.32785408]
[1755554408396,3.16,183.97,183.89,0.07]
[1755554408895,3.16,183.97,183.9,5.4345]
[1755554410285,3.16,183.97,183.92,0.0355247]
[1755554410488,135.5,183.98,183.92,0.0355247]
[1755554410685,3.16,183.95,183.92,0.0355247]
[1755554410895,3.79001383,183.96,183.85,4.60784025]
[1755554411098,3.16,183.93,183.84,3.79001383]
[1755554411298,3.16,183.93,183.82,4.53784025]
[1755554411299,4.29138903,183.92,183.82,0.1]
[1755554411503,3.16,183.9,183.81,3.79001383]
[1755554411802,3.16,183.88,183.81,3.79001383]
[1755554412196,0.03850763,183.86,183.81,3.79001383]